[Event "Titled Tuesday Blitz February 14 Late 2023"]
[White "Kanyamarala, Trisha"]
[Black "Urbina Perez, Juan Antonio"]
[WhiteFideId "45004722"]
[BlackFideId "2217368"]
[WhiteElo "2278"]
[BlackElo "2266"]
[Result "0-1"]
[Round "07"]
[TimeControl "180+2"]
[Date "2023.02.14"]
[WhiteClock "0:00:03"]
[BlackClock "0:00:28"]

1. d4 {[%clk 0:03:00]}  Nf6 {[%clk 0:02:56]} 2. c4 {[%clk 0:03:00]}  g6 {[%clk 0:02:55]} 3. Nc3 {[%clk 0:03:00]}  d5 {[%clk 0:02:54]} 4. cxd5 {[%clk 0:02:59]}  Nxd5 {[%clk 0:02:55]} 5. Bd2 {[%clk 0:02:56]}  Bg7 {[%clk 0:02:51]} 6. e4 {[%clk 0:02:56]}  Nxc3 {[%clk 0:02:51]} 7. Bxc3 {[%clk 0:02:56]}  O-O {[%clk 0:02:50]} 8. Qd2 {[%clk 0:02:52]}  c5 {[%clk 0:02:47]} 9. d5 {[%clk 0:02:43]}  e6 {[%clk 0:02:40]} 10. d6 {[%clk 0:02:32]}  Bxc3 {[%clk 0:02:32]} 11. bxc3 {[%clk 0:02:31]}  e5 {[%clk 0:02:33]} 12. Nf3 {[%clk 0:02:29]}  Nc6 {[%clk 0:02:32]} 13. h4 {[%clk 0:02:20]}  h5 {[%clk 0:02:30]} 14. Qh6 {[%clk 0:02:15]}  Qf6 {[%clk 0:02:30]} 15. Rd1 {[%clk 0:02:07]}  Bd7 {[%clk 0:02:29]} 16. Bc4 {[%clk 0:02:06]}  Rad8 {[%clk 0:02:27]} 17. Qe3 {[%clk 0:01:17]}  Be6 {[%clk 0:02:16]} 18. Bxe6 {[%clk 0:01:13]}  Qxe6 {[%clk 0:02:17]} 19. Qxc5 {[%clk 0:01:13]}  Rd7 {[%clk 0:02:14]} 20. Rd5 {[%clk 0:00:51]}  Rfd8 {[%clk 0:02:13]} 21. Nxe5 {[%clk 0:00:47]}  Rxd6 {[%clk 0:02:11]} 22. Nxc6 {[%clk 0:00:30]}  Qxe4+ {[%clk 0:02:02]} 23. Qe3 {[%clk 0:00:29]}  Qxe3+ {[%clk 0:01:26]} 24. fxe3 {[%clk 0:00:30]}  Rxd5 {[%clk 0:01:25]} 25. Nxd8 {[%clk 0:00:27]}  Rxd8 {[%clk 0:01:22]} 26. Ke2 {[%clk 0:00:28]}  Rd5 {[%clk 0:01:21]} 27. Rb1 {[%clk 0:00:27]}  b6 {[%clk 0:01:21]} 28. a4 {[%clk 0:00:21]}  Rc5 {[%clk 0:01:15]} 29. Kd3 {[%clk 0:00:20]}  Kf8 {[%clk 0:01:13]} 30. Rb4 {[%clk 0:00:20]}  Ke7 {[%clk 0:01:12]} 31. Rd4 {[%clk 0:00:18]}  Rf5 {[%clk 0:01:11]} 32. Ke2 {[%clk 0:00:17]}  Rc5 {[%clk 0:01:08]} 33. Kd3 {[%clk 0:00:16]}  g5 {[%clk 0:01:06]} 34. hxg5 {[%clk 0:00:16]}  Rxg5 {[%clk 0:01:07]} 35. Rh4 {[%clk 0:00:15]}  Ke6 {[%clk 0:01:03]} 36. Re4+ {[%clk 0:00:12]}  Kd6 {[%clk 0:01:01]} 37. Rf4 {[%clk 0:00:12]}  f5 {[%clk 0:00:57]} 38. Rh4 {[%clk 0:00:12]}  Ke5 {[%clk 0:00:56]} 39. Rh3 {[%clk 0:00:11]}  Rxg2 {[%clk 0:00:51]} 40. Rxh5 {[%clk 0:00:11]}  Rg4 {[%clk 0:00:51]} 41. a5 {[%clk 0:00:09]}  bxa5 {[%clk 0:00:49]} 42. Rh7 {[%clk 0:00:10]}  Rg1 {[%clk 0:00:44]} 43. Rxa7 {[%clk 0:00:09]}  Rd1+ {[%clk 0:00:45]} 44. Ke2 {[%clk 0:00:09]}  Ra1 {[%clk 0:00:44]} 45. c4 {[%clk 0:00:08]}  Ra2+ {[%clk 0:00:40]} 46. Kd3 {[%clk 0:00:08]}  Ra3+ {[%clk 0:00:41]} 47. Ke2 {[%clk 0:00:08]}  a4 {[%clk 0:00:40]} 48. Kd2 {[%clk 0:00:07]}  Ke4 {[%clk 0:00:39]} 49. Re7+ {[%clk 0:00:06]}  Kf3 {[%clk 0:00:40]} 50. c5 {[%clk 0:00:06]}  Ra2+ {[%clk 0:00:38]} 51. Kd3 {[%clk 0:00:06]}  Ra3+ {[%clk 0:00:38]} 52. Kd4 {[%clk 0:00:07]}  Ra1 {[%clk 0:00:38]} 53. c6 {[%clk 0:00:07]}  Rc1 {[%clk 0:00:37]} 54. c7 {[%clk 0:00:06]}  a3 {[%clk 0:00:36]} 55. Re5 {[%clk 0:00:07]}  Rxc7 {[%clk 0:00:33]} 56. Rxf5+ {[%clk 0:00:07]}  Ke2 {[%clk 0:00:33]} 57. Ra5 {[%clk 0:00:07]}  Rd7+ {[%clk 0:00:33]} 58. Ke4 {[%clk 0:00:06]}  Rd3 {[%clk 0:00:32]} 59. Kf4 {[%clk 0:00:05]}  Rxe3 {[%clk 0:00:31]} 60. Kf5 {[%clk 0:00:05]}  Kd2 {[%clk 0:00:30]} 61. Kf4 {[%clk 0:00:05]}  Rc3 {[%clk 0:00:27]} 62. Ke4 {[%clk 0:00:04]}  Kc2 {[%clk 0:00:28]} 63. Kd4 {[%clk 0:00:04]}  Kb2 {[%clk 0:00:28]} 64. Rb5+ {[%clk 0:00:04]}  Rb3 {[%clk 0:00:28]} 65. Ra5 {[%clk 0:00:03]}  a2 {[%clk 0:00:28]} 0-1


[Site "https://www.chess.com"]

[Event "Titled Tuesday Blitz February 14 Late 2023"]
[White "Bilan, Danila"]
[Black "Kostiukov, Alexandr"]
[WhiteFideId "24161918"]
[BlackFideId "14108100"]
[WhiteElo "2303"]
[BlackElo "2271"]
[Result "1-0"]
[Round "07"]
[TimeControl "180+2"]
[Date "2023.02.14"]
[WhiteClock "0:00:10"]
[BlackClock "0:00:06"]

1. d4 {[%clk 0:03:00]}  g6 {[%clk 0:02:53]} 2. Nf3 {[%clk 0:02:59]}  Bg7 {[%clk 0:02:53]} 3. Bg5 {[%clk 0:02:58]}  c5 {[%clk 0:02:50]} 4. c3 {[%clk 0:02:58]}  Qb6 {[%clk 0:02:47]} 5. Qc1 {[%clk 0:02:48]}  d5 {[%clk 0:02:45]} 6. e3 {[%clk 0:02:47]}  Nc6 {[%clk 0:02:44]} 7. Nbd2 {[%clk 0:02:43]}  Bf5 {[%clk 0:02:34]} 8. Be2 {[%clk 0:02:40]}  Nf6 {[%clk 0:02:32]} 9. O-O {[%clk 0:02:38]}  Ne4 {[%clk 0:02:26]} 10. Nxe4 {[%clk 0:02:34]}  dxe4 {[%clk 0:02:26]} 11. Nd2 {[%clk 0:02:32]}  h6 {[%clk 0:02:15]} 12. Bh4 {[%clk 0:02:29]}  g5 {[%clk 0:02:16]} 13. Bg3 {[%clk 0:02:26]}  e5 {[%clk 0:02:06]} 14. Nc4 {[%clk 0:02:17]}  Qc7 {[%clk 0:02:02]} 15. d5 {[%clk 0:01:51]}  Nd8 {[%clk 0:01:45]} 16. d6 {[%clk 0:01:50]}  Qd7 {[%clk 0:01:12]} 17. Nxe5 {[%clk 0:01:49]}  Qe6 {[%clk 0:01:12]} 18. Bb5+ {[%clk 0:01:12]}  Kf8 {[%clk 0:01:10]} 19. Nd7+ {[%clk 0:01:05]}  Kg8 {[%clk 0:01:08]} 20. Nxc5 {[%clk 0:01:04]}  Qd5 {[%clk 0:01:02]} 21. b4 {[%clk 0:01:00]}  Bg6 {[%clk 0:00:26]} 22. Bd7 {[%clk 0:00:46]}  Qc4 {[%clk 0:00:20]} 23. Rd1 {[%clk 0:00:24]}  b6 {[%clk 0:00:19]} 24. Nb3 {[%clk 0:00:21]}  Qxc3 {[%clk 0:00:13]} 25. Qxc3 {[%clk 0:00:15]}  Bxc3 {[%clk 0:00:14]} 26. Rac1 {[%clk 0:00:13]}  Bxb4 {[%clk 0:00:14]} 27. Be5 {[%clk 0:00:10]}  Rh7 {[%clk 0:00:12]} 28. Bf6 {[%clk 0:00:11]}  Ne6 {[%clk 0:00:11]} 29. Bxe6 {[%clk 0:00:10]}  fxe6 {[%clk 0:00:10]} 30. d7 {[%clk 0:00:11]}  Be7 {[%clk 0:00:06]} 31. Bxe7 {[%clk 0:00:11]}  Rxe7 {[%clk 0:00:06]} 32. Rc8+ {[%clk 0:00:10]} 1-0


[Site "https://www.chess.com"]

[Event "Titled Tuesday Blitz February 14 Late 2023"]
[White "Tworuszka, Michal"]
[Black "Torres Dominguez, David"]
[WhiteFideId "1117858"]
[BlackFideId "2220857"]
[WhiteElo "2260"]
[BlackElo "1994"]
[Result "1-0"]
[Round "07"]
[TimeControl "180+2"]
[Date "2023.02.14"]
[WhiteClock "0:01:09"]
[BlackClock "0:00:04"]

1. e4 {[%clk 0:02:56]}  Nc6 {[%clk 0:02:58]} 2. Nf3 {[%clk 0:02:54]}  e5 {[%clk 0:02:58]} 3. Nc3 {[%clk 0:02:53]}  Nf6 {[%clk 0:02:57]} 4. a3 {[%clk 0:02:53]}  d5 {[%clk 0:02:54]} 5. Bb5 {[%clk 0:02:52]}  dxe4 {[%clk 0:02:28]} 6. Nxe5 {[%clk 0:02:52]}  Qd6 {[%clk 0:02:24]} 7. d4 {[%clk 0:02:46]}  exd3 {[%clk 0:02:19]} 8. O-O {[%clk 0:02:38]}  Be7 {[%clk 0:02:10]} 9. Bf4 {[%clk 0:02:33]}  dxc2 {[%clk 0:01:43]} 10. Qxc2 {[%clk 0:02:33]}  O-O {[%clk 0:01:09]} 11. Nxc6 {[%clk 0:02:21]}  Qxf4 {[%clk 0:01:05]} 12. Nxe7+ {[%clk 0:02:21]}  Kh8 {[%clk 0:01:06]} 13. Nxc8 {[%clk 0:02:19]}  Raxc8 {[%clk 0:01:05]} 14. Be2 {[%clk 0:02:15]}  Rfe8 {[%clk 0:01:04]} 15. Bf3 {[%clk 0:02:16]}  g5 {[%clk 0:01:01]} 16. Nd5 {[%clk 0:02:05]}  Nxd5 {[%clk 0:00:55]} 17. Bxd5 {[%clk 0:02:05]}  Rcd8 {[%clk 0:00:54]} 18. Rad1 {[%clk 0:01:54]}  Rd6 {[%clk 0:00:40]} 19. Ba2 {[%clk 0:01:46]}  Rh6 {[%clk 0:00:33]} 20. Qc3+ {[%clk 0:01:40]}  Kg8 {[%clk 0:00:32]} 21. Qg3 {[%clk 0:01:37]}  Qf6 {[%clk 0:00:25]} 22. Rd7 {[%clk 0:01:35]}  Rf8 {[%clk 0:00:22]} 23. Rxc7 {[%clk 0:01:33]}  g4 {[%clk 0:00:19]} 24. Rxb7 {[%clk 0:01:29]}  Rg6 {[%clk 0:00:14]} 25. Bb1 {[%clk 0:01:25]}  Rg5 {[%clk 0:00:14]} 26. b4 {[%clk 0:01:23]}  h5 {[%clk 0:00:13]} 27. Rxa7 {[%clk 0:01:17]}  Rg7 {[%clk 0:00:13]} 28. Rd7 {[%clk 0:01:13]}  h4 {[%clk 0:00:13]} 29. Qd6 {[%clk 0:01:13]}  Qc3 {[%clk 0:00:09]} 30. Qd3 {[%clk 0:01:09]}  Qb2 {[%clk 0:00:06]} 31. Rd8 {[%clk 0:01:09]}  g3 {[%clk 0:00:04]} 32. Rxf8+ {[%clk 0:01:09]}  Kxf8 {[%clk 0:00:04]} 33. Qd8# {[%clk 0:01:09]} 1-0


[Site "https://www.chess.com"]

[Event "Titled Tuesday Blitz February 14 Late 2023"]
[White "Risteski, Emil"]
[Black "Todev, Simeon"]
[WhiteFideId "15005267"]
[BlackFideId "2925133"]
[WhiteElo "2366"]
[BlackElo "2033"]
[Result "1-0"]
[Round "07"]
[TimeControl "180+2"]
[Date "2023.02.14"]
[WhiteClock "0:00:33"]
[BlackClock "0:00:25"]

1. e4 {[%clk 0:02:22]}  c5 {[%clk 0:02:57]} 2. c3 {[%clk 0:02:21]}  e6 {[%clk 0:02:54]} 3. d4 {[%clk 0:02:20]}  d5 {[%clk 0:02:53]} 4. e5 {[%clk 0:02:20]}  Nc6 {[%clk 0:02:44]} 5. Nf3 {[%clk 0:02:20]}  Nge7 {[%clk 0:02:41]} 6. Bd3 {[%clk 0:02:20]}  g6 {[%clk 0:02:17]} 7. h4 {[%clk 0:01:59]}  h5 {[%clk 0:02:14]} 8. O-O {[%clk 0:01:56]}  Bg7 {[%clk 0:02:07]} 9. Re1 {[%clk 0:01:56]}  O-O {[%clk 0:01:58]} 10. dxc5 {[%clk 0:01:51]}  Nf5 {[%clk 0:01:56]} 11. Bxf5 {[%clk 0:01:49]}  exf5 {[%clk 0:01:55]} 12. Bg5 {[%clk 0:01:34]}  Qc7 {[%clk 0:01:52]} 13. Bf6 {[%clk 0:01:34]}  Re8 {[%clk 0:01:50]} 14. Na3 {[%clk 0:01:26]}  a6 {[%clk 0:01:42]} 15. Qxd5 {[%clk 0:01:18]}  Be6 {[%clk 0:01:41]} 16. Qd6 {[%clk 0:01:17]}  Qa5 {[%clk 0:01:37]} 17. Nc2 {[%clk 0:01:00]}  Rad8 {[%clk 0:01:34]} 18. Bxd8 {[%clk 0:00:59]}  Rxd8 {[%clk 0:01:35]} 19. b4 {[%clk 0:00:53]}  Qa4 {[%clk 0:01:28]} 20. Qc7 {[%clk 0:00:44]}  Qxc2 {[%clk 0:01:19]} 21. Qxb7 {[%clk 0:00:44]}  Bd5 {[%clk 0:00:55]} 22. Rad1 {[%clk 0:00:38]}  Qxc3 {[%clk 0:00:31]} 23. Rxd5 {[%clk 0:00:32]}  Rxd5 {[%clk 0:00:28]} 24. Qxc6 {[%clk 0:00:32]}  Rxe5 {[%clk 0:00:27]} 25. Rxe5 {[%clk 0:00:30]}  Bxe5 {[%clk 0:00:22]} 26. Qe8+ {[%clk 0:00:30]}  Kh7 {[%clk 0:00:22]} 27. Qxe5 {[%clk 0:00:31]}  Qc1+ {[%clk 0:00:19]} 28. Kh2 {[%clk 0:00:31]}  Qc4 {[%clk 0:00:17]} 29. Ng5+ {[%clk 0:00:28]}  Kg8 {[%clk 0:00:16]} 30. Qe8+ {[%clk 0:00:27]}  Kg7 {[%clk 0:00:16]} 31. Qxf7+ {[%clk 0:00:27]}  Qxf7 {[%clk 0:00:17]} 32. Nxf7 {[%clk 0:00:28]}  Kxf7 {[%clk 0:00:18]} 33. a4 {[%clk 0:00:27]}  Ke6 {[%clk 0:00:18]} 34. b5 {[%clk 0:00:28]}  a5 {[%clk 0:00:18]} 35. Kg3 {[%clk 0:00:28]}  Kd5 {[%clk 0:00:18]} 36. Kf4 {[%clk 0:00:29]}  Kxc5 {[%clk 0:00:18]} 37. Kg5 {[%clk 0:00:29]}  Kc4 {[%clk 0:00:18]} 38. b6 {[%clk 0:00:29]}  Kb4 {[%clk 0:00:19]} 39. b7 {[%clk 0:00:30]}  Kxa4 {[%clk 0:00:20]} 40. b8=Q {[%clk 0:00:31]}  Ka3 {[%clk 0:00:21]} 41. Kxg6 {[%clk 0:00:31]}  f4 {[%clk 0:00:22]} 42. Kf5 {[%clk 0:00:32]}  Ka2 {[%clk 0:00:23]} 43. Ke4 {[%clk 0:00:32]}  a4 {[%clk 0:00:23]} 44. Kd3 {[%clk 0:00:32]}  a3 {[%clk 0:00:24]} 45. Kc2 {[%clk 0:00:33]}  f3 {[%clk 0:00:25]} 46. Qb1# {[%clk 0:00:33]} 1-0


[Site "https://www.chess.com"]

[Event "Titled Tuesday Blitz February 14 Late 2023"]
[White "Sarkar, Justin"]
[Black "Golubev, Mikhail"]
[WhiteFideId "2010011"]
[BlackFideId "14100983"]
[WhiteElo "2309"]
[BlackElo "2461"]
[Result "1-0"]
[Round "07"]
[TimeControl "180+2"]
[Date "2023.02.14"]
[WhiteClock "0:00:02"]
[BlackClock "0:00:01"]

1. d4 {[%clk 0:02:56]}  Nf6 {[%clk 0:02:59]} 2. c4 {[%clk 0:02:54]}  d6 {[%clk 0:02:58]} 3. Nc3 {[%clk 0:02:49]}  g6 {[%clk 0:02:58]} 4. e4 {[%clk 0:02:46]}  Bg7 {[%clk 0:02:58]} 5. Be2 {[%clk 0:02:36]}  O-O {[%clk 0:02:56]} 6. Be3 {[%clk 0:02:35]}  c5 {[%clk 0:02:51]} 7. d5 {[%clk 0:02:35]}  e6 {[%clk 0:02:51]} 8. Nf3 {[%clk 0:02:32]}  exd5 {[%clk 0:02:51]} 9. cxd5 {[%clk 0:02:31]}  b5 {[%clk 0:02:49]} 10. e5 {[%clk 0:02:23]}  dxe5 {[%clk 0:02:49]} 11. Bxc5 {[%clk 0:02:16]}  Re8 {[%clk 0:02:48]} 12. Bxb5 {[%clk 0:02:00]}  Bd7 {[%clk 0:02:38]} 13. O-O {[%clk 0:01:33]}  Bxb5 {[%clk 0:02:33]} 14. Nxb5 {[%clk 0:01:32]}  Na6 {[%clk 0:01:37]} 15. Bd6 {[%clk 0:01:03]}  Qb6 {[%clk 0:01:36]} 16. a4 {[%clk 0:00:52]}  e4 {[%clk 0:00:58]} 17. Ne5 {[%clk 0:00:43]}  e3 {[%clk 0:00:41]} 18. Qf3 {[%clk 0:00:10]}  exf2+ {[%clk 0:00:13]} 19. Rxf2 {[%clk 0:00:10]}  Rad8 {[%clk 0:00:07]} 20. Kh1 {[%clk 0:00:09]}  Rxd6 {[%clk 0:00:05]} 21. Nc4 {[%clk 0:00:06]}  Qc5 {[%clk 0:00:03]} 22. Ncxd6 {[%clk 0:00:06]}  Rf8 {[%clk 0:00:03]} 23. Rd1 {[%clk 0:00:05]}  Nb4 {[%clk 0:00:02]} 24. Ne4 {[%clk 0:00:05]}  Nbxd5 {[%clk 0:00:01]} 25. Nxf6+ {[%clk 0:00:04]}  Nxf6 {[%clk 0:00:02]} 26. Qc3 {[%clk 0:00:03]}  Qb6 {[%clk 0:00:02]} 27. Qd4 {[%clk 0:00:02]}  Qb7 {[%clk 0:00:01]} 28. Rxf6 {[%clk 0:00:02]} 1-0


[Site "https://www.chess.com"]

[Event "Titled Tuesday Blitz February 14 Late 2023"]
[White "ArchibaldCerveza29"]
[Black "Kalajzic, Ivan"]
[BlackFideId "14506378"]
[WhiteElo "2469"]
[BlackElo "2062"]
[Result "1-0"]
[Round "07"]
[TimeControl "180+2"]
[Date "2023.02.14"]
[WhiteClock "0:01:00"]
[BlackClock "0:00:15"]

1. e4 {[%clk 0:03:00]}  c6 {[%clk 0:02:52]} 2. d4 {[%clk 0:03:00]}  d5 {[%clk 0:02:52]} 3. exd5 {[%clk 0:03:01]}  cxd5 {[%clk 0:02:52]} 4. c4 {[%clk 0:03:02]}  Nf6 {[%clk 0:02:51]} 5. Nc3 {[%clk 0:02:58]}  Be6 {[%clk 0:02:51]} 6. c5 {[%clk 0:02:52]}  g6 {[%clk 0:02:49]} 7. Nf3 {[%clk 0:02:47]}  Bg4 {[%clk 0:02:44]} 8. Qb3 {[%clk 0:02:44]}  Bxf3 {[%clk 0:02:41]} 9. Qxb7 {[%clk 0:02:35]}  Nbd7 {[%clk 0:02:38]} 10. gxf3 {[%clk 0:02:34]}  Bg7 {[%clk 0:01:32]} 11. c6 {[%clk 0:02:33]}  Nb6 {[%clk 0:01:31]} 12. c7 {[%clk 0:02:32]}  Qc8 {[%clk 0:01:31]} 13. Ba6 {[%clk 0:02:28]}  Qe6+ {[%clk 0:01:16]} 14. Be3 {[%clk 0:02:22]}  O-O {[%clk 0:01:16]} 15. Rc1 {[%clk 0:02:10]}  Nc4 {[%clk 0:00:44]} 16. Ke2 {[%clk 0:01:49]}  Nh5 {[%clk 0:00:32]} 17. Nxd5 {[%clk 0:01:42]}  Nxe3 {[%clk 0:00:23]} 18. fxe3 {[%clk 0:01:43]}  Bxd4 {[%clk 0:00:22]} 19. c8=Q {[%clk 0:01:34]}  Raxc8 {[%clk 0:00:21]} 20. Rxc8 {[%clk 0:01:34]}  Bxe3 {[%clk 0:00:17]} 21. Rxf8+ {[%clk 0:01:32]}  Kg7 {[%clk 0:00:18]} 22. Rxf7+ {[%clk 0:01:12]}  Qxf7 {[%clk 0:00:16]} 23. Nxe3 {[%clk 0:01:03]}  Qxa2 {[%clk 0:00:15]} 24. Qxe7+ {[%clk 0:01:00]}  Kh6 {[%clk 0:00:15]} 25. Ng4# {[%clk 0:01:00]} 1-0


[Site "https://www.chess.com"]

[Event "Titled Tuesday Blitz February 14 Late 2023"]
[White "Slade, Theodore"]
[Black "Toktomushev, Teimur"]
[WhiteFideId "426547"]
[BlackFideId "14176726"]
[WhiteElo "1995"]
[BlackElo "2239"]
[Result "1-0"]
[Round "07"]
[TimeControl "180+2"]
[Date "2023.02.14"]
[WhiteClock "0:00:09"]
[BlackClock "0:00:02"]

1. d4 {[%clk 0:03:00]}  d5 {[%clk 0:02:59]} 2. c4 {[%clk 0:03:01]}  e6 {[%clk 0:02:58]} 3. Nf3 {[%clk 0:03:01]}  Nf6 {[%clk 0:02:58]} 4. g3 {[%clk 0:03:02]}  Bb4+ {[%clk 0:02:57]} 5. Bd2 {[%clk 0:03:02]}  Be7 {[%clk 0:02:57]} 6. Bg2 {[%clk 0:03:02]}  O-O {[%clk 0:02:57]} 7. O-O {[%clk 0:03:03]}  c6 {[%clk 0:02:57]} 8. Qc2 {[%clk 0:03:04]}  b6 {[%clk 0:02:57]} 9. Bf4 {[%clk 0:03:03]}  Ba6 {[%clk 0:02:57]} 10. b3 {[%clk 0:03:03]}  Nbd7 {[%clk 0:02:56]} 11. Rd1 {[%clk 0:02:52]}  Rc8 {[%clk 0:02:54]} 12. Nbd2 {[%clk 0:02:52]}  c5 {[%clk 0:02:54]} 13. Qb2 {[%clk 0:02:19]}  cxd4 {[%clk 0:02:50]} 14. Qxd4 {[%clk 0:02:05]}  Bc5 {[%clk 0:02:45]} 15. Qb2 {[%clk 0:02:05]}  h6 {[%clk 0:02:16]} 16. b4 {[%clk 0:01:47]}  Be7 {[%clk 0:02:08]} 17. b5 {[%clk 0:01:36]}  Bb7 {[%clk 0:01:59]} 18. Rac1 {[%clk 0:01:36]}  Bc5 {[%clk 0:01:33]} 19. Nb3 {[%clk 0:01:30]}  Qe7 {[%clk 0:01:32]} 20. Nxc5 {[%clk 0:01:29]}  Nxc5 {[%clk 0:01:31]} 21. cxd5 {[%clk 0:01:25]}  Nxd5 {[%clk 0:01:29]} 22. Bd2 {[%clk 0:01:25]}  Ne4 {[%clk 0:01:20]} 23. Be1 {[%clk 0:01:24]}  Rxc1 {[%clk 0:00:55]} 24. Rxc1 {[%clk 0:01:23]}  Rc8 {[%clk 0:00:40]} 25. Rxc8+ {[%clk 0:01:21]}  Bxc8 {[%clk 0:00:41]} 26. Ne5 {[%clk 0:01:21]}  Nc5 {[%clk 0:00:23]} 27. Nc6 {[%clk 0:01:15]}  Qd7 {[%clk 0:00:22]} 28. Bxd5 {[%clk 0:01:05]}  exd5 {[%clk 0:00:23]} 29. Qe5 {[%clk 0:01:01]}  Bb7 {[%clk 0:00:16]} 30. Bc3 {[%clk 0:00:57]}  f6 {[%clk 0:00:14]} 31. Qb8+ {[%clk 0:00:51]}  Kh7 {[%clk 0:00:14]} 32. Nd4 {[%clk 0:00:45]}  Ne4 {[%clk 0:00:08]} 33. Bb4 {[%clk 0:00:42]}  Qc8 {[%clk 0:00:01]} 34. Qxa7 {[%clk 0:00:30]}  Qc1+ {[%clk 0:00:01]} 35. Kg2 {[%clk 0:00:31]}  Bc8 {[%clk 0:00:01]} 36. Bf8 {[%clk 0:00:10]}  Bh3+ {[%clk 0:00:02]} 37. Kxh3 {[%clk 0:00:11]}  Qf1+ {[%clk 0:00:02]} 38. Kh4 {[%clk 0:00:09]} 1-0


[Site "https://www.chess.com"]

[Event "Titled Tuesday Blitz February 14 Late 2023"]
[White "Liu, Casper"]
[Black "Fernandez Garcia, Gumersindo"]
[WhiteFideId "1454153"]
[BlackFideId "24516740"]
[WhiteElo "2278"]
[BlackElo "2160"]
[Result "0-1"]
[Round "07"]
[TimeControl "180+2"]
[Date "2023.02.14"]
[WhiteClock "0:00:42"]
[BlackClock "0:01:12"]

1. d4 {[%clk 0:02:57]}  Nf6 {[%clk 0:02:59]} 2. Nf3 {[%clk 0:02:56]}  b6 {[%clk 0:02:57]} 3. Bf4 {[%clk 0:02:56]}  Bb7 {[%clk 0:02:58]} 4. e3 {[%clk 0:02:57]}  e6 {[%clk 0:02:57]} 5. Nbd2 {[%clk 0:02:57]}  Be7 {[%clk 0:02:56]} 6. Bd3 {[%clk 0:02:58]}  O-O {[%clk 0:02:57]} 7. O-O {[%clk 0:02:58]}  d5 {[%clk 0:02:57]} 8. Qe2 {[%clk 0:02:58]}  Ne4 {[%clk 0:02:58]} 9. c4 {[%clk 0:02:53]}  Nd7 {[%clk 0:02:57]} 10. cxd5 {[%clk 0:02:51]}  exd5 {[%clk 0:02:57]} 11. Rac1 {[%clk 0:02:51]}  c5 {[%clk 0:02:58]} 12. Ne5 {[%clk 0:02:45]}  Nxe5 {[%clk 0:02:54]} 13. Bxe5 {[%clk 0:02:40]}  Bd6 {[%clk 0:02:54]} 14. Bxd6 {[%clk 0:02:39]}  Qxd6 {[%clk 0:02:55]} 15. Bxe4 {[%clk 0:02:35]}  dxe4 {[%clk 0:02:54]} 16. dxc5 {[%clk 0:02:33]}  bxc5 {[%clk 0:02:55]} 17. Qb5 {[%clk 0:02:28]}  Ba6 {[%clk 0:02:53]} 18. Nc4 {[%clk 0:02:27]}  Bxb5 {[%clk 0:02:45]} 19. Nxd6 {[%clk 0:02:26]}  Bxf1 {[%clk 0:02:46]} 20. Kxf1 {[%clk 0:02:21]}  Rab8 {[%clk 0:02:40]} 21. b3 {[%clk 0:02:18]}  f5 {[%clk 0:02:21]} 22. Rxc5 {[%clk 0:02:17]}  g6 {[%clk 0:02:21]} 23. Rc7 {[%clk 0:02:12]}  Rfd8 {[%clk 0:02:20]} 24. Nc4 {[%clk 0:02:04]}  a5 {[%clk 0:02:13]} 25. Nxa5 {[%clk 0:02:02]}  Rd2 {[%clk 0:02:11]} 26. a4 {[%clk 0:01:55]}  Rb2 {[%clk 0:01:58]} 27. g3 {[%clk 0:01:45]}  Rd8 {[%clk 0:01:52]} 28. Rc1 {[%clk 0:01:31]}  Rd5 {[%clk 0:01:46]} 29. Nc4 {[%clk 0:01:30]}  Rxb3 {[%clk 0:01:46]} 30. a5 {[%clk 0:01:25]}  Rb4 {[%clk 0:01:35]} 31. a6 {[%clk 0:01:18]}  Rc5 {[%clk 0:01:28]} 32. Ra1 {[%clk 0:01:04]}  Rbxc4 {[%clk 0:01:14]} 33. a7 {[%clk 0:00:42]}  Rc1+ {[%clk 0:01:12]} 0-1


[Site "https://www.chess.com"]